bitfinex-derivatives/quotes_SOLF0:USTF0_20241029
["timestamp","ask_amount","ask_price","bid_price","bid_amount"]
[1730245011652,2.73897435,179.13,179.02,11.09905765]
[1730245011653,8.57785765,179.11,179.02,11.09905765]
[1730245011956,8.57785765,179.08,179.02,11.09905765]
[1730245012355,8.57785765,179.08,179.06,2.7927]
[1730245012555,8.57785765,179.08,179.01,1.2553]
[1730245012758,2.86138014,179.09,179.01,9.83315765]
[1730245012759,8.57785765,179.06,179.01,9.83315765]
[1730245013655,11.43923779,179.09,179.04,8.57785765]
[1730245015259,11.43923779,179.09,179.06,2.7926]
[1730245016261,8.57785765,179.08,179.06,2.7926]
[1730245016465,2.86138014,179.09,179.03,2.7931]
[1730245016466,8.57785765,179.07,179.03,2.7931]
[1730245016673,8.57785765,179.07,179.0,9.05863476]
[1730245016970,8.57785765,179.07,179.02,8.57785765]
[1730245017265,8.57785765,179.07,179.04,2.7929]
[1730245019183,8.57785765,179.07,179.05,2.7929]
[1730245019468,1.3425,179.12,179.05,8.57785765]
[1730245019681,4.04,179.1,179.05,8.57785765]
[1730245020076,4.04,179.1,179.07,2.7924]
[1730245020665,4.04,179.1,179.08,2.7924]
[1730245022771,8.57785765,179.09,179.01,5.2616]
[1730245022975,8.57785765,179.09,179.04,8.57785765]
[1730245023778,8.57785765,179.09,179.07,2.7925]
[1730245023982,8.57785765,179.09,179.04,8.57785765]
[1730245026373,8.57785765,179.09,179.07,2.7925]
[1730245028685,8.57785765,179.09,179.04,8.57785765]
[1730245031286,8.57785765,179.09,179.08,2.7924]
[1730245032988,270.23740373,179.14,179.11,2.7918]
[1730245033288,265.69954608,179.14,179.1,8.57785765]
[1730245034389,265.69954608,179.14,179.12,2.7917]
[1730245036089,274.27740373,179.14,179.12,2.7917]
[1730245036283,274.27740373,179.14,179.08,8.57785765]
[1730245036485,8.57785765,179.13,179.11,2.7919]
[1730245036689,11.31751706,179.13,179.06,8.57785765]
[1730245036886,265.69954608,179.14,179.13,2.7916]
[1730245037279,22.60183208,179.28,179.03,2.6643]
[1730245037280,51.06205,179.33,179.12,8.57785765]
[1730245037586,8.57785765,179.2,179.12,4.04]
[1730245037794,8.57785765,179.19,179.12,4.04]
[1730245037983,8.57785765,179.19,179.16,2.791]
[1730245038180,8.57785765,179.19,179.14,8.57785765]
[1730245038784,8.57785765,179.18,179.16,2.791]
[1730245038993,1.2356,179.21,179.13,8.57785765]
[1730245039191,8.57785765,179.2,179.14,8.57785765]
[1730245040392,6.88888821,179.22,179.18,2.7908]
[1730245040584,261.39422138,179.25,179.18,8.57785765]
[1730245040788,8.57785765,179.24,179.19,8.57785765]
[1730245040988,8.57785765,179.24,179.21,2.7903]
[1730245041196,2.85927042,179.25,179.19,8.57785765]
[1730245041395,8.57785765,179.24,179.19,8.57785765]
[1730245042498,8.57785765,179.25,179.19,8.57785765]
[1730245042800,8.57785765,179.25,179.22,2.7901]
[1730245043191,8.57785765,179.24,179.21,2.7904]
[1730245043695,8.57785765,179.24,179.18,12.61785765]
[1730245044789,8.57785765,179.24,179.18,8.57785765]
[1730245046191,11.36785765,179.24,179.2,2.7904]
[1730245046588,8.57785765,179.22,179.2,2.7904]
[1730245046793,8.57785765,179.21,179.18,2.7907]
[1730245047097,8.57785765,179.2,179.15,8.57785765]
[1730245048200,8.57785765,179.2,179.16,2.7911]
[1730245048391,8.57785765,179.2,179.15,8.57785765]
[1730245049000,8.57785765,179.18,179.13,163.65894699]
[1730245049389,8.57785765,179.18,179.13,172.23680464]
[1730245049601,8.57785765,179.18,179.13,163.65894699]
[1730245049904,8.57785765,179.17,179.13,159.61894699]
[1730245050094,8.57785765,179.17,179.14,2.7915]
[1730245050296,8.57785765,179.17,179.11,8.57785765]
[1730245050297,2.7913,179.16,179.11,8.57785765]
[1730245051411,2.7913,179.16,179.13,2.7916]
[1730245054206,8.57785765,179.17,179.11,8.57785765]
[1730245054508,12.61785765,179.2,179.14,8.57785765]
[1730245055110,15.40855765,179.2,179.16,2.7911]
[1730245055306,12.61785765,179.2,179.16,2.7911]
[1730245055507,8.57785765,179.2,179.14,8.57785765]
[1730245055810,8.57785765,179.2,179.18,2.7908]
[1730245057209,8.57785765,179.2,179.19,2.7907]
[1730245058013,8.57785765,179.21,179.19,2.7907]
[1730245059305,8.57785765,179.21,179.16,8.57785765]
[1730245059506,8.57785765,179.21,179.18,2.7908]
[1730245060012,8.57785765,179.2,179.18,2.7908]
[1730245060218,8.57785765,179.19,179.18,2.7908]
[1730245060415,8.57785765,179.19,179.16,2.791]
[1730245060603,8.57785765,179.19,179.13,12.61785765]
[1730245061013,8.57785765,179.19,179.16,2.791]
[1730245064119,8.57785765,179.19,179.17,2.791]
[1730245064306,8.57785765,179.2,179.14,8.57785765]
[1730245064512,8.57785765,179.22,179.16,8.57785765]
[1730245065011,11.36815765,179.22,179.19,2.7906]
[1730245065714,11.36825765,179.21,179.18,2.7908]
[1730245070322,11.36825765,179.21,179.16,8.57785765]
[1730245070323,8.57785765,179.21,179.16,8.57785765]
[1730245070619,12.61785765,179.24,179.17,8.57785765]
[1730245071123,4.04,179.24,179.17,8.57785765]
[1730245071327,15.40795765,179.24,179.2,2.7904]
[1730245072021,11.36795765,179.23,179.2,2.7904]
[1730245072715,2.7901,179.23,179.2,2.7904]
[1730245075915,11.36795765,179.23,179.2,2.7904]
[1730245077823,8.57785765,179.21,179.2,2.7904]
[1730245078331,11.36825765,179.21,179.14,12.61785765]
[1730245079318,11.36825765,179.21,179.18,2.7909]
[1730245081627,2.7904,179.21,179.18,2.7909]
[1730245082527,8.57785765,179.22,179.15,8.57785765]
[1730245082830,2.7904,179.21,179.18,2.7908]
[1730245086827,4.04,179.25,179.14,4.04]
[1730245087029,11.36805765,179.23,179.19,2.7906]
[1730245087224,8.57785765,179.23,179.19,2.7906]
[1730245088333,2.7902,179.22,179.19,2.7906]
[1730245088526,11.36805765,179.22,179.19,2.7906]
[1730245090629,8.57785765,179.22,179.16,8.57785765]
[1730245090834,2.7905,179.2,179.17,2.7909]
[1730245091037,8.57785765,179.2,179.1,1.2475]
[1730245091234,8.57785765,179.2,179.13,12.61785765]
[1730245091434,2.7909,179.18,179.13,12.61785765]
[1730245091637,8.57785765,179.2,179.13,12.61785765]
[1730245091836,2.74106962,179.27,179.16,8.57785765]
[1730245092038,8.57785765,179.23,179.16,8.57785765]
[1730245092334,4.04,179.26,179.19,8.57785765]
[1730245092539,2.79,179.24,179.21,2.7903]
[1730245092724,8.57785765,179.25,179.18,8.57785765]
[1730245093125,2.7901,179.23,179.2,2.7904]
[1730245093329,4.04,179.25,179.2,8.57785765]
[1730245093733,6.8299,179.25,179.22,2.7902]
[1730245094441,4.04,179.25,179.2,8.57785765]
[1730245094749,12.61785765,179.25,179.2,8.57785765]
[1730245094936,12.61785765,179.25,179.22,2.7901]
[1730245096232,2.7897,179.26,179.2,8.57785765]
[1730245096440,11.36755765,179.26,179.23,2.7901]
[1730245096637,8.57785765,179.26,179.21,8.57785765]
[1730245097139,8.57785765,179.26,179.2,12.61785765]
[1730245097346,8.57785765,179.25,179.2,12.61785765]
[1730245098051,8.57785765,179.25,179.22,2.7901]
[1730245100553,8.57785765,179.25,179.2,12.61785765]
[1730245101655,8.57785765,179.25,179.22,2.7902]
[1730245102851,8.57785765,179.25,179.2,4.04]
[1730245103047,11.36795765,179.23,179.2,6.8304]
[1730245103443,11.36795765,179.23,179.16,1.3173]
[1730245103444,8.57785765,179.22,179.16,9.89515765]
[1730245103642,2.7904,179.21,179.18,2.7907]
[1730245104858,2.7904,179.21,179.19,2.7907]
[1730245107161,2.7904,179.21,179.18,2.7908]
[1730245107657,11.36815765,179.22,179.19,2.7907]
[1730245107861,2.82496141,179.25,179.17,4.04]
[1730245108166,8.57785765,179.23,179.17,4.04]
[1730245108364,14.10019143,179.23,179.18,2.7907]
[1730245108564,11.30999143,179.23,179.17,4.04]
[1730245108961,2.7902,179.22,179.19,2.7906]
[1730245110460,11.30999143,179.23,179.17,4.04]
[1730245110666,14.10019143,179.23,179.2,2.7905]
[1730245111365,11.30999143,179.23,179.21,2.7904]
[1730245111569,11.36785765,179.24,179.21,2.7904]
[1730245114666,11.36785765,179.24,179.18,8.57785765]
[1730245114865,2.73353593,179.25,179.2,2.7905]
[1730245114866,11.36795765,179.23,179.2,2.7905]
[1730245116067,11.36795765,179.23,179.16,1.3173]
[1730245116068,8.57785765,179.21,178.94,2.57677108]
[1730245116263,8.57785765,179.21,179.14,9.89055765]
[1730245116460,8.57785765,179.22,179.15,8.57785765]
[1730245116876,11.36815765,179.22,179.18,2.7907]
[1730245117175,8.57785765,179.22,179.17,8.57785765]
[1730245117367,8.57785765,179.22,179.19,2.7905]
[1730245119670,4.04,179.23,179.17,8.57785765]
[1730245119871,4.04,179.23,179.18,8.57785765]
[1730245120073,8.57785765,179.24,179.18,8.57785765]
[1730245121173,11.36795765,179.24,179.2,2.7905]
[1730245122277,2.7901,179.23,179.2,2.7905]
[1730245122577,8.57785765,179.24,179.18,8.57785765]
[1730245122873,2.79,179.24,179.18,8.57785765]
[1730245123975,2.79,179.24,179.21,2.7904]
[1730245124374,2.7901,179.23,179.2,2.7905]
[1730245126178,6.8297,179.26,179.2,8.57785765]
[1730245126374,11.36755765,179.26,179.2,8.57785765]
[1730245126767,14.20943475,179.26,179.22,2.7901]
[1730245127975,14.20943475,179.26,179.23,2.7901]
[1730245129177,8.57785765,179.24,179.17,6.5307]
[1730245129384,8.57785765,179.24,179.22,2.7902]
[1730245133181,8.57785765,179.23,179.17,1.2687]
[1730245133380,8.57785765,179.21,179.14,1.3127]
[1730245133681,4.04,179.24,179.16,8.57785765]
[1730245133682,8.57785765,179.23,179.16,8.57785765]
[1730245134087,2.7903,179.22,179.19,2.7906]
[1730245136682,8.57785765,179.23,179.2,2.7904]
[1730245137684,11.36795765,179.23,179.2,2.7904]
[1730245140290,2.7902,179.22,179.19,2.7907]
[1730245141389,2.7903,179.22,179.19,2.7907]
[1730245142289,11.36795765,179.23,179.17,8.57785765]
[1730245142694,11.36795765,179.23,179.19,2.7907]
[1730245143890,8.57785765,179.22,179.17,8.57785765]
[1730245144096,8.57785765,179.22,179.2,2.7905]
[1730245145586,2.7904,179.21,179.17,2.7909]
[1730245146199,2.7904,179.21,179.18,2.7908]
[1730245146892,11.36825765,179.21,179.18,2.7908]
[1730245147093,2.7904,179.21,179.17,2.791]
[1730245147389,8.57785765,179.2,179.16,8.57785765]
[1730245148395,8.57785765,179.2,179.17,2.791]
[1730245149694,8.57785765,179.2,179.18,2.7909]
[1730245154091,8.57785765,179.19,179.16,2.791]
[1730245154292,2.8418771,179.26,179.16,2.791]
[1730245154293,8.57785765,179.17,179.16,2.791]
[1730245155287,11.36865765,179.19,179.16,2.791]
[1730245160500,4.02,179.2,179.15,8.57785765]
[1730245160695,4.02,179.2,179.18,2.7908]
[1730245161091,258.88539471,179.24,179.21,2.7903]
[1730245161292,267.46325236,179.24,179.21,2.7903]
[1730245162300,270.25325236,179.24,179.21,2.7903]
[1730245166108,270.25325236,179.24,179.18,8.57785765]
[1730245166307,270.25325236,179.24,179.2,2.7905]
[1730245167612,4.02,179.25,179.22,2.7901]
[1730245167914,14.20943475,179.26,179.22,2.7901]
[1730245168106,5.6315771,179.26,179.22,2.7901]
[1730245168510,11.36785765,179.24,179.2,2.7905]
[1730245169211,14.14929502,179.24,179.2,2.7905]
[1730245170402,5.57143737,179.24,179.19,8.57785765]
[1730245170604,4.02,179.27,179.22,2.7902]
[1730245170605,2.7898,179.25,179.22,2.7902]
[1730245177510,2.7898,179.25,179.21,11.36815765]
[1730245177717,8.57785765,179.24,179.21,2.7903]
[1730245182322,2.7898,179.25,179.21,2.7903]
[1730245182523,11.36765765,179.25,179.21,2.7903]
[1730245187927,1.2813,179.28,179.21,8.57785765]
[1730245188122,2.7897,179.26,179.23,2.79]
[1730245189820,11.36755765,179.26,179.23,2.79]
[1730245190726,8.57785765,179.26,179.17,5.3572]
[1730245190923,2.7901,179.23,179.2,2.7905]
[1730245193025,2.79,179.24,179.2,2.7905]
[1730245200441,6.75771868,179.27,179.19,8.57785765]
[1730245200630,6.75771868,179.27,179.17,5.3572]
[1730245200631,15.33557633,179.27,179.21,8.57785765]
[1730245201034,2.7897,179.26,179.23,2.79]
[1730245201942,2.7902,179.23,179.17,5.3572]
[1730245202132,8.57785765,179.24,179.17,13.93505765]
[1730245202335,8.57785765,179.2,179.15,8.57785765]
[1730245202743,8.57785765,179.2,179.17,2.791]
[1730245203039,8.57785765,179.18,179.11,12.49025765]
[1730245203250,2.81377629,179.17,179.11,12.49025765]
[1730245203433,5.60487629,179.17,179.13,2.7916]
[1730245203737,8.57785765,179.14,179.1,161.9892179]
[1730245204736,11.36935765,179.14,179.11,2.7918]
[1730245205243,8.57785765,179.14,179.11,2.7918]
[1730245206448,8.57785765,179.14,179.1,161.9892179]
[1730245206747,2.7914,179.15,179.12,2.7918]
[1730245206947,8.57785765,179.16,179.11,8.57785765]
[1730245207143,4.02,179.18,179.15,2.7912]
[1730245208242,6.8109,179.18,179.15,2.7912]
[1730245208637,8.57785765,179.16,179.07,4.02]
[1730245208839,8.57785765,179.15,179.11,2.7918]
[1730245209043,8.57785765,179.15,179.09,8.57785765]
[1730245209547,11.36905765,179.16,179.1,8.57785765]
[1730245211041,11.36905765,179.16,179.12,2.7917]
[1730245211242,2.7912,179.16,179.12,2.7917]
[1730245211450,11.36905765,179.16,179.12,2.7917]
[1730245212544,8.57785765,179.15,179.12,2.7917]
[1730245227159,2.7912,179.16,179.12,2.7917]
[1730245227362,4.02,179.17,179.14,2.7914]
[1730245227752,1.2737,179.26,179.14,8.57785765]
[1730245227951,11.36835765,179.21,179.17,2.7909]
[1730245228150,15.38835765,179.21,179.17,2.7909]
[1730245228853,2.7906,179.2,179.17,2.7909]
[1730245231157,11.36845765,179.2,179.17,2.7909]
[1730245231357,2.7912,179.16,179.1,8.57785765]
[1730245231559,8.57785765,179.14,179.1,8.57785765]
[1730245231959,8.57785765,179.14,179.12,2.7916]
[1730245232659,2.83971426,179.15,179.12,2.7916]
[1730245234657,2.83971426,179.15,179.11,8.57785765]
[1730245234862,2.83971426,179.15,179.13,2.7916]
[1730245235066,1.3288,179.19,179.13,8.57785765]
[1730245235259,12.59785765,179.18,179.13,8.57785765]
[1730245235464,12.59785765,179.18,179.15,2.7912]
[1730245235665,15.33649935,179.18,179.15,2.7912]
[1730245241672,18.12739935,179.18,179.15,2.7912]
[1730245243769,2.7913,179.15,179.12,2.7918]
[1730245244074,8.57785765,179.15,179.09,167.36479927]
[1730245244873,11.36925765,179.15,179.09,167.36479927]
[1730245245068,8.57785765,179.13,179.09,158.78694162]
[1730245245373,8.57785765,179.13,179.1,2.7921]
[1730245245570,8.57785765,179.11,179.09,158.78694162]
[1730245245766,8.57785765,179.11,179.06,8.57785765]
[1730245246363,4.02,179.14,179.02,4.02]
[1730245246364,8.57785765,179.1,179.02,4.02]
[1730245246576,8.57785765,179.1,179.01,3.8632]
[1730245246577,12.59785765,179.1,179.03,8.57785765]
[1730245247079,15.39005765,179.1,179.06,2.7927]
[1730245247672,2.7924,179.09,179.05,2.7928]
[1730245248375,2.78311531,179.08,179.05,2.7928]
[1730245249172,6.8122,179.1,179.06,11.37045765]
[1730245249483,4.02,179.1,179.06,8.57785765]
[1730245249873,4.02,179.1,179.07,2.7926]
[1730245250577,4.02,179.12,179.1,2.792]
[1730245252288,2.84453883,179.13,179.09,8.57785765]
[1730245252475,11.36925765,179.15,179.11,2.7919]
[1730245252780,4.02,179.14,179.11,2.7919]
[1730245253479,6.8115,179.14,179.11,2.7919]
[1730245254881,11.36915765,179.16,179.12,2.7917]
[1730245255084,4.02,179.15,179.1,8.57785765]
[1730245255484,4.02,179.15,179.12,8.57785765]
[1730245255882,4.02,179.15,179.13,2.7915]
[1730245257788,2.7911,179.17,179.12,8.57785765]
[1730245257977,4.02,179.17,179.15,2.7913]
[1730245258974,256.80371636,179.18,179.15,2.7913]
[1730245259184,256.80371636,179.18,179.16,2.7911]
[1730245274295,256.80371636,179.18,179.09,3.6867]
[1730245274296,2.73771868,179.27,179.17,8.57785765]
[1730245274496,2.73771868,179.27,179.19,8.57785765]
[1730245274497,6.81,179.24,179.19,8.57785765]
[1730245275195,6.81,179.24,179.2,2.7905]
[1730245275801,2.73771868,179.27,179.26,2.7896]
[1730245276096,2.73771868,179.27,179.23,8.57785765]
[1730245276097,4.02,179.27,179.23,8.57785765]
[1730245276397,2.82814248,179.26,179.24,2.7899]
[1730245278099,6.5967,179.31,179.27,2.7893]
[1730245278303,6.5967,179.31,179.28,8.57785765]
[1730245278597,2.74929346,179.3,179.28,11.36715765]
[1730245279601,403.64764517,179.32,179.28,11.36715765]
[1730245280099,2.76883953,179.31,179.28,11.36715765]
[1730245280589,400.85884517,179.32,179.28,2.7893]
[1730245280794,400.85884517,179.32,179.29,8.57785765]
[1730245281101,9.66499835,179.33,179.29,8.57785765]
[1730245281302,6.8086,179.33,179.29,8.57785765]
[1730245281803,9.55111088,179.33,179.29,8.57785765]
[1730245282801,6.76251088,179.33,179.28,8.57785765]
[1730245283105,2.7889,179.31,179.26,8.57785765]
[1730245283790,2.7889,179.31,179.27,2.7894]
[1730245285106,2.7889,179.31,179.28,8.57785765]
[1730245285997,2.74251088,179.33,179.3,8.57785765]
[1730245286197,9.88075765,179.36,179.3,8.57785765]
[1730245286405,2.7891,179.3,179.27,8.57785765]
[1730245288607,2.73650178,179.32,179.27,8.57785765]
[1730245288801,2.7888,179.31,179.27,11.36725765]
[1730245288998,5.55029212,179.31,179.27,11.36725765]
[1730245290708,11.33934977,179.31,179.27,8.57785765]
[1730245290900,2.789,179.3,179.27,8.57785765]
[1730245291801,2.789,179.3,179.27,11.36725765]
[1730245294096,9.57039212,179.31,179.27,11.36725765]
[1730245294803,6.78149212,179.31,179.29,8.57785765]
[1730245295010,4.02,179.34,179.3,8.57785765]
[1730245295304,6.76058886,179.34,179.3,8.57785765]
[1730245295505,2.74058886,179.34,179.32,8.57785765]
[1730245296406,2.7884,179.35,179.31,2.7888]
[1730245296611,2.7886,179.33,179.29,11.36695765]
[1730245297202,5.64272579,179.33,179.29,11.36695765]
[1730245297511,5.64272579,179.33,179.3,8.57785765]
[1730245298310,2.7886,179.33,179.3,8.57785765]
[1730245298610,2.7886,179.33,179.3,11.36685765]
[1730245299210,2.83905413,179.35,179.3,11.36685765]
[1730245299211,2.7884,179.34,179.3,11.36685765]
[1730245300018,5.58056452,179.34,179.3,11.36685765]
[1730245301710,2.7885,179.33,179.3,11.36685765]
[1730245304709,2.79216452,179.34,179.3,8.57785765]
[1730245304912,2.7888,179.32,179.28,2.7892]
[1730245305110,2.82022953,179.32,179.26,8.57785765]
[1730245305412,4.02,179.32,179.26,8.57785765]
[1730245305614,6.77492188,179.32,179.26,8.57785765]
[1730245305915,2.789,179.31,179.28,8.57785765]
[1730245307412,2.789,179.31,179.28,11.36715765]
[1730245308116,4.02,179.32,179.29,11.36695765]
[1730245308329,4.02,179.32,179.3,8.57785765]
[1730245308615,2.7886,179.33,179.3,8.57785765]
[1730245308809,2.76192542,179.32,179.3,8.57785765]
[1730245309317,2.76192542,179.32,179.3,11.36685765]
[1730245310208,2.76192542,179.32,179.3,2.789]
[1730245311021,4.02,179.34,179.31,2.7888]
[1730245313819,6.8084,179.34,179.31,2.7888]
[1730245315712,4.02,179.34,179.31,2.7888]
[1730245316517,4.02,179.34,179.3,8.57785765]
[1730245316722,4.02,179.34,179.32,8.57785765]
[1730245318114,9.57925256,179.35,179.32,8.57785765]
[1730245320024,9.57925256,179.35,179.31,2.7887]
[1730245320427,6.79095256,179.35,179.31,2.7887]
[1730245320620,2.7884,179.34,179.31,2.7887]
[1730245322324,18.15711021,179.35,179.31,2.7887]
[1730245323332,6.79095256,179.35,179.33,8.57785765]
[1730245323515,6.79095256,179.35,179.33,11.36625765]
[1730245324527,2.77095256,179.35,179.33,11.36625765]
[1730245324729,253.40509541,179.37,179.33,11.36625765]
[1730245326630,250.61719541,179.37,179.28,3.8237]
[1730245326926,8.57785765,179.35,179.28,8.57785765]
[1730245327134,11.36887333,179.35,179.28,8.57785765]
[1730245327326,2.7886,179.33,179.29,2.789]
[1730245329823,2.7886,179.33,179.29,11.36685765]
[1730245332626,8.57785765,179.33,179.21,3.7996]
[1730245332833,8.57785765,179.32,179.22,4.02]
[1730245333018,8.57785765,179.32,179.26,8.57785765]
[1730245333622,8.57785765,179.32,179.27,8.57785765]
[1730245334223,2.7889,179.31,179.27,11.36725765]
[1730245336329,2.789,179.3,179.27,11.36725765]
[1730245336522,8.57785765,179.32,179.21,7.8196]
[1730245336728,4.02,179.33,179.27,8.57785765]
[1730245338230,2.789,179.31,179.27,8.57785765]
[1730245339045,2.789,179.31,179.27,11.36725765]
[1730245340536,2.7887,179.32,179.29,8.57785765]
[1730245340837,2.79101568,179.35,179.3,8.57785765]
[1730245341042,4.02,179.37,179.33,8.57785765]
[1730245342336,6.8079,179.37,179.33,11.36635765]
[1730245344144,2.7877,179.39,179.35,8.57785765]
[1730245344440,2.7877,179.39,179.27,3.774]
[1730245344441,4.02,179.4,179.36,8.57785765]
[1730245345341,2.76032064,179.39,179.36,11.36575765]
[1730245346244,2.7875,179.4,179.38,8.57785765]
[1730245346546,4.02,179.41,179.38,1.88415955]
[1730245346944,8.57785765,179.44,179.38,1.88415955]
[1730245347145,2.7873,179.41,179.38,1.88415955]
[1730245347345,4.02,179.43,179.38,1.88415955]
[1730245347543,4.02,179.43,179.36,2.7881]
[1730245347544,2.7874,179.41,179.36,11.36595765]
[1730245348341,2.7874,179.41,179.36,8.57785765]
[1730245348547,2.7874,179.41,179.37,2.7878]
[1730245349547,2.7874,179.41,179.38,8.57785765]
[1730245349747,2.7874,179.41,179.38,3.01004895]
[1730245352649,4.02,179.43,179.38,3.01004895]
[1730245352954,2.7872,179.42,179.38,3.01004895]
[1730245353944,2.7873,179.41,179.38,3.01004895]
[1730245357754,4.02,179.43,179.38,3.01004895]
[1730245357962,6.8071,179.43,179.38,5.79774895]
[1730245358858,2.7871,179.42,179.38,5.79774895]
[1730245359261,4.02,179.43,179.38,3.01004895]
[1730245359457,2.7873,179.41,179.38,3.01004895]
[1730245361261,4.02,179.42,179.38,5.79764895]
[1730245361455,4.02,179.42,179.39,8.57785765]
[1730245362261,6.8072,179.42,179.39,8.57785765]
[1730245362562,4.02,179.44,179.4,8.57785765]
[1730245363353,6.78640024,179.44,179.4,8.57785765]
[1730245364258,2.7871,179.43,179.4,8.57785765]
[1730245367064,9.57330024,179.44,179.4,8.57785765]
[1730245367676,2.76640024,179.44,179.42,8.57785765]
[1730245367862,4.02,179.45,179.42,8.57785765]
[1730245368056,2.75546293,179.44,179.42,8.57785765]
[1730245369267,4.02,179.45,179.4,8.57785765]
[1730245370070,2.787,179.43,179.4,8.57785765]
[1730245370265,6.87699026,179.45,179.4,8.57785765]
[1730245370567,2.7869,179.44,179.4,8.57785765]
[1730245372564,2.7869,179.44,179.4,11.36525765]
[1730245373859,6.87699026,179.45,179.35,3.9304]
[1730245373860,6.87699026,179.45,179.42,8.57785765]
[1730245374064,9.66369026,179.45,179.42,8.57785765]
[1730245375572,6.87699026,179.45,179.42,8.57785765]
[1730245375768,6.87699026,179.45,179.42,11.36495765]
[1730245376773,2.85699026,179.45,179.42,11.36495765]
[1730245378673,2.85699026,179.45,179.42,8.57785765]
[1730245379276,2.85699026,179.45,179.42,11.36495765]
[1730245380175,68.85785765,179.5,179.44,8.57785765]
[1730245380478,4.02,179.47,179.46,8.57785765]
[1730245380664,6.8773955,179.47,179.46,8.57785765]
[1730245381870,602.38024646,179.51,179.46,8.57785765]
[1730245382072,4.02,179.52,179.49,8.57785765]
[1730245382871,4.02,179.53,179.49,8.57785765]
[1730245383078,4.02,179.53,179.51,8.57785765]
[1730245385077,4.0,179.53,179.51,8.57785765]
[1730245385776,4.0,179.53,179.49,11.36375765]
[1730245385980,2.786,179.5,179.45,2.7866]
[1730245386176,2.786,179.5,179.45,11.36445765]
[1730245386375,2.786,179.5,179.46,2.7865]
[1730245386578,2.786,179.5,179.45,8.57785765]
[1730245387073,2.786,179.5,179.45,11.36435765]
[1730245387277,8.57785765,179.51,179.45,2.7865]
[1730245387278,2.7861,179.49,179.45,2.7865]
[1730245387478,2.81687955,179.48,179.46,8.57785765]
[1730245390586,2.7859,179.51,179.46,11.36435765]
[1730245391676,2.7859,179.5,179.46,11.36435765]
[1730245391877,2.7859,179.5,179.46,2.7865]
[1730245392079,2.7861,179.49,179.45,2.7866]
[1730245393986,2.7867,179.45,179.4,2.7874]
[1730245394175,8.57785765,179.44,179.39,8.57785765]
[1730245394376,8.57785765,179.44,179.37,1.268]
[1730245394377,8.57785765,179.43,179.37,1.268]
[1730245394577,8.57785765,179.44,179.4,2.7874]
[1730245394773,8.57785765,179.44,179.37,1.268]
[1730245394981,8.57785765,179.44,179.39,8.57785765]
[1730245395581,8.57785765,179.43,179.33,5.2281]
[1730245395782,8.57785765,179.43,179.36,8.57785765]
[1730245395987,8.57785765,179.41,179.36,8.57785765]
[1730245396179,12.57785765,179.41,179.37,2.7878]
[1730245396579,12.57785765,179.41,179.38,2.7877]
[1730245399391,4.0,179.41,179.39,2.7876]
[1730245400680,4.0,179.41,179.38,8.57785765]
[1730245400879,4.0,179.43,179.39,8.57785765]
[1730245401280,6.76329939,179.43,179.41,11.36505765]
[1730245401683,6.76329939,179.43,179.41,2.7872]
[1730245401880,6.76329939,179.43,179.39,2.7875]
[1730245402080,8.57785765,179.42,179.36,8.57785765]
[1730245403289,11.36505765,179.42,179.38,2.7877]
[1730245404090,8.57785765,179.41,179.38,2.7877]
[1730245405194,2.7872,179.42,179.38,2.7877]
[1730245405396,6.76329939,179.43,179.36,8.57785765]
[1730245405598,9.55029939,179.43,179.38,8.57785765]
[1730245406394,6.76329939,179.43,179.41,2.7873]
[1730245408096,6.76329939,179.43,179.37,2.7878]
[1730245408097,11.36505765,179.42,179.37,2.7878]
[1730245408399,11.36505765,179.42,179.34,8.57785765]
[1730245408400,8.57785765,179.4,179.34,8.57785765]
[1730245408593,8.57785765,179.4,179.37,2.7878]
[1730245408789,8.57785765,179.4,179.34,8.57785765]
[1730245409189,8.57785765,179.4,179.33,1.2281]
[1730245409190,8.57785765,179.41,179.36,8.57785765]
[1730245410288,8.57785765,179.41,179.38,2.7877]
[1730245410485,8.57785765,179.39,179.34,8.57785765]
[1730245410689,8.57785765,179.39,179.33,9.80595765]
[1730245410690,11.36555765,179.39,179.33,9.80595765]
[1730245410997,8.57785765,179.39,179.33,9.80595765]
[1730245411789,8.57785765,179.39,179.36,2.788]
[1730245411990,2.7875,179.4,179.36,2.788]
[1730245413894,8.57785765,179.39,179.36,2.788]